bitfinex/quotes_BTCUSD_20240620
["timestamp","ask_amount","ask_price","bid_price","bid_amount"]
[1718896672556,0.49050906,65041.0,65027.0,0.83934]
[1718896672720,0.37606865,65041.0,65027.0,0.83934]
[1718896672927,0.50004555,65041.0,65027.0,0.83934]
[1718896673131,0.38560514,65041.0,65029.0,0.00998902]
[1718896673339,0.38560514,65041.0,65027.0,0.83934]
[1718896673340,0.38560514,65041.0,65032.0,0.01998902]
[1718896673551,0.38560514,65041.0,65040.0,0.006946]
[1718896673552,0.47710267,65041.0,65040.0,0.006946]
[1718896673778,0.38560514,65041.0,65040.0,0.006946]
[1718896673988,0.38560514,65041.0,65040.0,0.000946]
[1718896674191,0.47710267,65041.0,65040.0,0.000946]
[1718896674448,0.38560514,65041.0,65040.0,0.000946]
[1718896674819,0.37606865,65041.0,65040.0,0.000946]
[1718896675483,0.46279753,65041.0,65040.0,0.000946]
[1718896675653,0.45028512,65041.0,65040.0,0.000946]
[1718896676026,0.37606827,65041.0,65040.0,0.003946]
[1718896678452,0.44460751,65041.0,65040.0,0.003946]
[1718896678654,0.44459391,65041.0,65040.0,0.003946]
[1718896679081,0.46743641,65041.0,65040.0,0.003946]
[1718896679383,0.52806642,65041.0,65040.0,0.003946]
[1718896679586,0.64224507,65041.0,65040.0,0.003946]
[1718896679965,0.64224507,65041.0,65040.0,0.000946]
[1718896680353,0.53006642,65041.0,65040.0,0.000946]
[1718896680548,0.62140626,65041.0,65040.0,0.000946]
[1718896680825,0.52806642,65041.0,65040.0,0.000946]
[1718896681028,0.54059879,65041.0,65040.0,0.000946]
[1718896681200,0.63293863,65041.0,65040.0,0.000946]
[1718896681402,0.57060506,65041.0,65040.0,0.000946]
[1718896681604,0.56707269,65041.0,65040.0,0.000946]
[1718896681805,0.57660506,65041.0,65040.0,0.000946]
[1718896682474,0.64508066,65041.0,65040.0,0.000946]
[1718896683571,0.57660506,65041.0,65040.0,0.000946]
[1718896684014,0.56707269,65041.0,65040.0,0.000946]
[1718896684225,0.61271387,65041.0,65040.0,0.000946]
[1718896684648,0.01476642,65041.0,65040.0,0.49250712]
[1718896684852,0.01476642,65041.0,65040.0,0.000946]
[1718896684973,0.01476642,65041.0,65040.0,0.00960667]
[1718896684974,0.02429801,65041.0,65040.0,0.00960667]
[1718896685179,0.02429801,65041.0,65040.0,0.000946]
[1718896685737,0.43410827,65041.0,65040.0,0.000946]
[1718896685947,0.42457668,65041.0,65040.0,0.000946]
[1718896686151,0.06039576,65041.0,65040.0,0.000946]
[1718896686349,0.01476642,65041.0,65040.0,0.000946]
[1718896686750,0.01476642,65041.0,65040.0,0.00960667]
[1718896686888,0.02429824,65041.0,65040.0,0.000946]
[1718896687090,0.02429824,65041.0,65040.0,0.00960667]
[1718896687307,0.02429824,65041.0,65040.0,0.000946]
[1718896687810,0.01,65041.0,65040.0,0.00960667]
[1718896688035,0.0242977,65041.0,65040.0,0.00960667]
[1718896688236,0.0202977,65041.0,65040.0,0.00960667]
[1718896688437,0.0142977,65041.0,65040.0,0.01260667]
[1718896691134,0.01429207,65041.0,65040.0,0.01260667]
[1718896692266,0.01429207,65041.0,65040.0,0.03259569]
[1718896693199,0.01429207,65041.0,65040.0,0.51345681]
[1718896694023,0.0047644,65041.0,65040.0,0.53645681]
[1718896694255,0.00952881,65041.0,65040.0,0.53645681]
[1718896694462,0.02917,65054.0,65051.0,0.01998902]
[1718896694637,0.01429494,65053.0,65051.0,0.01998902]
[1718896694842,0.01429494,65052.0,65051.0,0.01998902]
[1718896695125,0.01429494,65052.0,65050.0,0.3327]
[1718896695326,0.01429494,65051.0,65050.0,0.3327]
[1718896695523,0.01429494,65051.0,65050.0,0.01998902]
[1718896695729,0.01429494,65051.0,65050.0,0.49765014]
[1718896697232,0.005,65052.0,65051.0,0.01998902]
[1718896697421,0.01276465,65052.0,65051.0,0.17255014]
[1718896697637,0.01729395,65052.0,65051.0,0.17255014]
[1718896697832,0.01429395,65052.0,65051.0,0.17255014]
[1718896698039,0.01429395,65052.0,65051.0,0.50625014]
[1718896698698,0.01529395,65052.0,65051.0,0.50825014]
[1718896698903,0.01429395,65052.0,65051.0,0.53925014]
[1718896699107,0.01429395,65052.0,65051.0,0.65325014]
[1718896699310,0.00576465,65052.0,65051.0,0.68609014]
[1718896699481,0.00576465,65052.0,65051.0,1.00319014]
[1718896699641,0.02410989,65070.0,65069.0,0.35368902]
[1718896699852,0.03840598,65070.0,65069.0,0.50625014]
[1718896700048,0.02410989,65070.0,65069.0,0.50625014]
[1718896700246,0.03840566,65070.0,65069.0,0.50625014]
[1718896700906,0.03840566,65070.0,65069.0,0.48626112]
[1718896701203,0.03840566,65070.0,65069.0,0.50625014]
[1718896701896,0.03840566,65070.0,65069.0,0.50825014]
[1718896702746,0.03840566,65070.0,65069.0,0.002]
[1718896702947,0.17530566,65070.0,65069.0,0.002]
[1718896703148,0.17530447,65070.0,65069.0,0.002]
[1718896703602,0.17530447,65070.0,65057.0,0.15998902]
[1718896703820,0.1878,65063.0,65058.0,0.18106551]
[1718896704018,0.01429458,65062.0,65058.0,0.18106551]
[1718896704218,0.01429458,65061.0,65060.0,0.01998902]
[1718896704422,0.01429458,65061.0,65060.0,0.18104937]
[1718896704883,0.01429458,65061.0,65060.0,0.16106035]
[1718896705506,0.20209458,65061.0,65060.0,0.16106035]
[1718896705717,0.20309458,65061.0,65060.0,0.16306035]
[1718896705928,0.20309458,65061.0,65060.0,0.01049923]
[1718896706156,0.50649114,65061.0,65060.0,0.002]
[1718896706365,0.50649114,65061.0,65053.0,0.01998902]
[1718896706630,0.01429114,65060.0,65053.0,0.01998902]
[1718896706825,0.01429114,65059.0,65053.0,0.01998902]
[1718896706977,0.01429114,65058.0,65053.0,0.01998902]
[1718896707176,0.01429114,65057.0,65053.0,0.01998902]
[1718896707393,0.20209114,65056.0,65048.0,0.01998902]
[1718896707605,0.20209114,65056.0,65049.0,0.16114913]
[1718896707606,0.01429114,65055.0,65049.0,0.16114913]
[1718896707819,0.01429114,65054.0,65049.0,0.16114913]
[1718896708137,0.1878,65051.0,65049.0,0.16114913]
[1718896708276,0.01429114,65050.0,65049.0,0.16114913]
[1718896709087,0.17222413,65050.0,65049.0,0.00858801]
[1718896709457,0.17222413,65050.0,65043.0,0.01998902]
[1718896709458,0.31668618,65050.0,65043.0,0.01998902]
[1718896709652,0.01428618,65049.0,65043.0,0.15256112]
[1718896709888,0.01428618,65048.0,65044.0,0.00862838]
[1718896710088,0.34805516,65050.0,65044.0,0.00862838]
[1718896710089,0.01428618,65047.0,65044.0,0.00862838]
[1718896710408,0.01428618,65046.0,65043.0,0.15256112]
[1718896710547,0.04565516,65049.0,65045.0,0.0086203]
[1718896710749,0.01428526,65048.0,65044.0,0.00862838]
[1718896711091,0.01428526,65047.0,65045.0,0.0086203]
[1718896711300,0.01428526,65046.0,65045.0,0.0086203]
[1718896711452,0.01428526,65046.0,65044.0,0.004]
[1718896711654,0.01428526,65045.0,65044.0,0.004]
[1718896711862,0.0505193,65045.0,65040.0,0.000946]
[1718896712089,0.05994042,65044.0,65040.0,0.000946]
[1718896712336,0.05993201,65043.0,65040.0,0.000946]
[1718896712538,0.05993201,65042.0,65040.0,0.000946]
[1718896712713,0.05865516,65041.0,65040.0,0.000946]
[1718896712893,0.01428054,65041.0,65040.0,0.000946]
[1718896713095,0.05993201,65041.0,65040.0,0.000946]
[1718896713319,0.01428054,65041.0,65040.0,0.000946]
[1718896713529,0.05993201,65041.0,65040.0,0.000946]
[1718896713888,0.01428054,65041.0,65040.0,0.000946]
[1718896714092,0.05993201,65041.0,65040.0,0.000946]
[1718896714285,0.05993201,65041.0,65040.0,0.006946]
[1718896714491,0.01428054,65041.0,65040.0,0.006946]
[1718896714686,0.05993201,65041.0,65040.0,0.000946]
[1718896715068,0.08405157,65041.0,65040.0,0.003946]
[1718896715270,0.03840395,65041.0,65040.0,0.003946]
[1718896715545,0.0840662,65041.0,65040.0,0.003946]
[1718896715981,0.0840662,65041.0,65040.0,0.00389765]
[1718896716371,0.08407556,65041.0,65040.0,0.00389765]
[1718896717540,0.03840679,65041.0,65040.0,0.00389765]
[1718896718581,0.03840705,65041.0,65040.0,0.00389765]
[1718896719289,0.10691584,65041.0,65040.0,0.00389765]
[1718896720067,0.10691584,65041.0,65040.0,0.31729765]
[1718896720262,0.10691584,65041.0,65040.0,0.48984779]
[1718896720486,0.10691584,65041.0,65040.0,0.49882755]
[1718896720487,0.03840705,65041.0,65040.0,0.49882755]
[1718896721107,0.03840705,65041.0,65040.0,0.01287741]
[1718896721439,0.10691584,65041.0,65040.0,0.00389765]
[1718896721644,0.10578378,65041.0,65040.0,0.00389765]
[1718896721848,0.12007231,65041.0,65040.0,0.00389765]
[1718896723780,0.12207231,65041.0,65040.0,0.00389765]
[1718896724126,0.12007231,65041.0,65040.0,0.00389765]
[1718896724330,0.11530947,65041.0,65040.0,0.00389765]
[1718896724535,0.10578378,65041.0,65040.0,0.00389765]
[1718896724713,0.11054585,65041.0,65040.0,0.00389765]
[1718896725747,0.11654585,65041.0,65040.0,0.00389765]
[1718896726117,0.11954585,65041.0,65040.0,0.00089765]
[1718896727150,0.14755833,65041.0,65040.0,0.00089765]
[1718896727850,0.14755849,65041.0,65040.0,0.00089765]
[1718896729831,0.28454349,65041.0,65040.0,0.00089765]
[1718896730299,0.14755849,65041.0,65040.0,0.00089765]
[1718896730991,0.14279626,65041.0,65040.0,0.00089765]
[1718896731165,0.14756043,65041.0,65040.0,0.00089765]
[1718896731870,0.98770327,65041.0,65040.0,0.00089765]
[1718896732067,1.08770411,65041.0,65040.0,0.00089765]
[1718896732268,1.08470411,65041.0,65040.0,0.00089765]
[1718896732493,0.29712239,65041.0,65040.0,0.00089765]
[1718896732685,0.05689705,65041.0,65040.0,0.00089765]
[1718896732885,0.17111655,65041.0,65040.0,0.00089765]
[1718896733098,0.12543346,65041.0,65040.0,0.00987741]
[1718896733269,0.05689705,65041.0,65040.0,0.00089765]
[1718896733472,0.06889705,65041.0,65040.0,0.00089765]
[1718896733887,0.06389705,65041.0,65040.0,0.00189765]
[1718896734064,0.06989705,65041.0,65040.0,0.00189765]
[1718896734262,0.10859113,65041.0,65040.0,0.00089765]
[1718896734680,0.10859293,65041.0,65040.0,0.00489765]
[1718896735018,0.10859293,65041.0,65040.0,0.02488667]
[1718896735227,0.08057694,65041.0,65040.0,0.02488667]
[1718896735442,0.03488457,65041.0,65040.0,0.02488667]
[1718896735638,0.02888457,65041.0,65040.0,0.02488667]
[1718896735872,0.02888457,65041.0,65040.0,0.03386643]
[1718896737175,0.02974457,65041.0,65040.0,0.03386643]
[1718896737580,0.02974457,65041.0,65040.0,0.18642755]
[1718896737780,0.02497956,65041.0,65040.0,0.18642755]
[1718896737987,0.02974632,65041.0,65040.0,0.18642755]
[1718896738755,0.02974632,65041.0,65040.0,0.16643853]
[1718896739173,0.02974632,65041.0,65040.0,0.18642755]
[1718896739383,0.0748915,65041.0,65040.0,0.01387741]
[1718896739580,0.27583532,65041.0,65040.0,0.01387741]
[1718896739779,0.27583532,65041.0,65040.0,0.00489765]
[1718896739780,0.49703121,65041.0,65040.0,0.00489765]
[1718896740157,0.42903759,65041.0,65040.0,0.00489765]
[1718896740663,0.42903759,65041.0,65040.0,0.00089765]
[1718896740664,0.33764632,65041.0,65040.0,0.00089765]
[1718896740909,0.33487956,65041.0,65040.0,0.00089765]
[1718896741109,0.33964652,65041.0,65040.0,0.00089765]
[1718896741348,0.40892636,65041.0,65040.0,0.00089765]
[1718896741511,0.40692636,65041.0,65040.0,0.00089765]
[1718896741710,0.41092636,65041.0,65040.0,0.00089765]
[1718896742255,0.86348748,65041.0,65040.0,0.00089765]
[1718896742488,0.3086,65037.0,65024.0,0.000946]
[1718896742690,0.1878,65025.0,65024.0,0.000946]
[1718896742892,0.19256696,65025.0,65024.0,0.000946]
[1718896744349,0.48616696,65025.0,65024.0,0.000946]
[1718896745201,0.48616696,65025.0,65024.0,0.002946]
[1718896745641,0.54848887,65025.0,65024.0,0.000946]
[1718896746058,0.55448887,65025.0,65024.0,0.001946]
[1718896746520,0.56648887,65025.0,65024.0,0.001946]
[1718896747061,0.56172191,65025.0,65024.0,0.001946]
[1718896747270,0.56648866,65025.0,65024.0,0.001946]
[1718896747485,0.56048866,65025.0,65024.0,0.000946]
[1718896747717,0.56848866,65025.0,65024.0,0.000946]
[1718896748490,0.76048866,65025.0,65024.0,0.000946]
[1718896748873,0.76248866,65025.0,65024.0,0.000946]
[1718896749247,0.56248866,65025.0,65024.0,0.000946]
[1718896749476,0.54848866,65025.0,65024.0,0.000946]
[1718896749848,0.76248866,65025.0,65024.0,0.000946]
[1718896750101,0.75772191,65025.0,65024.0,0.000946]
[1718896750294,0.76248981,65025.0,65024.0,0.000946]
[1718896751463,1.02805093,65025.0,65024.0,0.000946]
[1718896751673,0.516,65021.0,65016.0,0.009471]
[1718896751877,0.67332902,65021.0,65016.0,0.009471]
[1718896752192,0.47332902,65021.0,65016.0,0.009471]
[1718896752408,0.81055861,65021.0,65016.0,0.009471]
[1718896752543,0.61055861,65021.0,65016.0,0.009471]
[1718896752745,0.75098363,65021.0,65016.0,0.009471]
[1718896752953,0.96298363,65021.0,65016.0,0.009471]
[1718896753185,0.96299039,65021.0,65016.0,0.009471]
[1718896753337,0.2,65017.0,65016.0,0.009471]
[1718896753547,0.76725973,65017.0,65016.0,0.009471]
[1718896753863,0.56725973,65017.0,65016.0,0.009471]
[1718896755720,0.68158843,65017.0,65016.0,0.009471]
[1718896755876,0.68958843,65017.0,65016.0,0.009471]
[1718896756075,0.70159631,65017.0,65016.0,0.009471]
[1718896756347,0.89359631,65017.0,65016.0,0.009471]
[1718896756782,0.70259631,65017.0,65016.0,0.009471]
[1718896756991,0.87887803,65017.0,65016.0,0.009471]
[1718896757172,0.87887803,65017.0,65005.0,0.009471]
[1718896757173,0.3074,65010.0,65005.0,0.009471]
[1718896757364,0.1878,65006.0,65005.0,0.009471]
[1718896758122,0.06859444,65012.0,65005.0,0.009471]
[1718896758355,0.23065925,65014.0,65005.0,0.009471]
[1718896758356,0.20779444,65014.0,65005.0,0.009471]
[1718896758553,0.006,65010.0,65006.0,0.00925443]
[1718896758844,0.1878,65007.0,65006.0,0.00925443]
[1718896760764,0.1878,65007.0,65006.0,0.02924345]
[1718896761030,0.1878,65007.0,65006.0,0.00925443]
[1718896761414,0.1888,65007.0,65006.0,0.00925443]
[1718896762019,0.1878,65007.0,65006.0,0.00925443]
[1718896762225,0.20768,65007.0,65006.0,0.00925443]
[1718896762423,0.33948,65007.0,65005.0,0.009471]
[1718896762994,0.33848,65007.0,65005.0,0.009471]
[1718896763195,0.05795568,65006.0,65005.0,0.009471]
[1718896763968,0.24575568,65006.0,65005.0,0.009471]
[1718896764105,0.1878,65006.0,65005.0,0.009471]
[1718896764334,0.1918,65006.0,65005.0,0.009471]
[1718896765855,0.004,65006.0,65005.0,0.313271]
[1718896766056,0.004,65006.0,65005.0,0.32253351]
[1718896766711,0.1878,65007.0,65005.0,0.32253351]
[1718896766913,0.004,65006.0,65005.0,0.32253351]
[1718896767317,0.21404389,65007.0,65005.0,0.32253351]
[1718896768324,0.1878,65007.0,65006.0,0.01998902]
[1718896768760,0.1878,65007.0,65006.0,0.02924345]
[1718896769587,0.1878,65007.0,65006.0,0.00925443]
[1718896770010,0.1878,65007.0,65006.0,0.02924345]
[1718896770965,0.1878,65009.0,65007.0,0.01998902]
[1718896771176,0.1878,65009.0,65006.0,0.00925443]
[1718896771395,0.1878,65009.0,65005.0,0.313271]
[1718896771396,0.001,65007.0,65005.0,0.313271]
[1718896771833,0.1878,65009.0,65005.0,0.313271]
[1718896772059,0.1878,65009.0,65005.0,0.009471]
[1718896772060,0.1744,65007.0,65005.0,0.009471]
[1718896772516,0.3557247,65006.0,65005.0,0.009471]
[1718896772829,0.57861257,65006.0,65005.0,0.009471]
[1718896773033,0.37861257,65006.0,65005.0,0.009471]
[1718896773275,0.43155912,65006.0,65005.0,0.009471]
[1718896773735,0.50022719,65006.0,65005.0,0.009471]
[1718896773948,0.43755912,65006.0,65005.0,0.009471]
[1718896774595,0.50621436,65006.0,65005.0,0.009471]
[1718896775289,0.53034934,65006.0,65005.0,0.009471]
[1718896775701,0.53334934,65006.0,65005.0,0.009471]
[1718896775892,0.52950884,65006.0,65005.0,0.009471]
[1718896776033,0.38501084,65006.0,65005.0,0.009471]
[1718896776435,0.3163556,65006.0,65005.0,0.009471]
[1718896776654,0.38498904,65006.0,65005.0,0.009471]
[1718896777545,0.3163556,65006.0,65005.0,0.009471]
[1718896777915,0.03313498,65006.0,65005.0,0.009471]
[1718896778123,0.10181757,65006.0,65005.0,0.009471]
[1718896778279,0.03313498,65006.0,65005.0,0.009471]
[1718896779284,0.14759384,65006.0,65005.0,0.009471]
[1718896780774,0.03313498,65006.0,65005.0,0.009471]
[1718896780931,0.17173498,65006.0,65005.0,0.009471]
[1718896781313,0.38534857,65006.0,65005.0,0.009471]
[1718896781521,0.47080479,65006.0,65005.0,0.009471]
[1718896782253,0.47080479,65006.0,65002.0,0.009471]
[1718896782254,0.3,65003.0,65002.0,0.009471]
[1718896782461,0.2,64999.0,64995.0,0.009471]
[1718896782671,0.13752724,64996.0,64995.0,0.009471]
[1718896782986,0.39736554,64996.0,64995.0,0.009471]
[1718896783545,0.19736554,64996.0,64995.0,0.009471]
[1718896783712,0.19736575,64996.0,64995.0,0.009471]
[1718896784144,0.30239603,64996.0,64995.0,0.009471]
[1718896784340,0.31639603,64996.0,64995.0,0.009471]
[1718896784759,0.30683028,64996.0,64995.0,0.009471]
[1718896784996,0.29283028,64996.0,64995.0,0.009471]
[1718896785363,0.30683028,64996.0,64995.0,0.009471]
[1718896785538,0.44450423,64996.0,64995.0,0.009471]
[1718896785741,0.45849965,64996.0,64995.0,0.009471]
[1718896786062,0.30683028,64996.0,64995.0,0.009471]
[1718896786239,0.32083028,64996.0,64995.0,0.009471]
[1718896786442,0.45847272,64996.0,64995.0,0.009471]
[1718896786869,0.45848039,64996.0,64995.0,0.009471]
[1718896787046,0.32083028,64996.0,64995.0,0.009471]
[1718896787246,0.44450904,64996.0,64995.0,0.009471]
[1718896787876,0.43050904,64996.0,64995.0,0.009471]
[1718896788085,0.44450904,64996.0,64995.0,0.009471]
[1718896788287,0.35347876,64996.0,64995.0,0.009471]
[1718896788438,0.33947876,64996.0,64995.0,0.009471]
[1718896788643,0.32547876,64996.0,64995.0,0.009471]
[1718896788880,0.21136518,64996.0,64995.0,0.009471]
[1718896789093,0.34904394,64996.0,64995.0,0.009471]
[1718896789313,0.248394,64996.0,64995.0,0.009471]
[1718896789514,0.40007276,64996.0,64995.0,0.009471]
[1718896789736,0.51495512,64996.0,64995.0,0.009471]
[1718896789864,0.51495512,64996.0,64994.0,0.00948199]
[1718896789865,0.3652,64994.0,64985.0,0.00948199]
[1718896790072,0.45692686,64991.0,64985.0,0.00948199]
[1718896790446,0.58965575,64991.0,64985.0,0.00948199]
[1718896790593,0.78965575,64991.0,64985.0,0.00948199]
[1718896790914,0.65205168,64991.0,64985.0,0.00948199]
[1718896791091,0.46161244,64991.0,64985.0,0.00948199]
[1718896792096,0.46605168,64991.0,64985.0,0.00948199]
[1718896792294,0.014,64991.0,64985.0,0.00948199]
[1718896792498,0.13760407,64995.0,64992.0,0.1364]
[1718896792703,0.11461966,64994.0,64992.0,0.1364]
[1718896793057,0.19735845,64993.0,64992.0,0.1364]
[1718896794652,0.19735845,64993.0,64992.0,0.14576761]
[1718896795313,0.26613464,64993.0,64992.0,0.14576761]
[1718896795503,0.19735845,64993.0,64992.0,0.14576761]
[1718896795944,0.20535845,64993.0,64992.0,0.14576761]
[1718896796168,0.21735845,64993.0,64992.0,0.14576761]
[1718896796478,0.28618151,64993.0,64992.0,0.14576761]
[1718896797285,0.30910956,64993.0,64992.0,0.14576761]
[1718896798346,0.33204734,64993.0,64992.0,0.14576761]
[1718896798683,0.21735845,64993.0,64992.0,0.29832873]
[1718896799118,0.21736437,64993.0,64992.0,0.29832873]
[1718896799668,0.21736437,64993.0,64992.0,0.14576761]
[1718896800094,0.25287516,64993.0,64992.0,0.14576761]
[1718896800471,0.25287516,64993.0,64992.0,0.00936761]
[1718896800472,0.21736437,64993.0,64992.0,0.00936761]
[1718896800882,0.21736437,64993.0,64990.0,0.24918199]
[1718896801086,0.14733839,64992.0,64991.0,0.0093757]
[1718896801344,0.18285223,64992.0,64991.0,0.0093757]
[1718896801514,0.04507821,64992.0,64991.0,0.0093757]
[1718896802093,0.3666902,64992.0,64991.0,0.0093757]
[1718896802298,0.3666902,64992.0,64990.0,0.10948199]
[1718896802527,0.2,64990.0,64986.0,0.009471]
[1718896802697,0.1878,64987.0,64986.0,0.009471]
[1718896802931,0.19736727,64987.0,64986.0,0.009471]
[1718896804920,0.1958,64987.0,64986.0,0.009471]
[1718896805226,0.31627254,64987.0,64986.0,0.009471]
[1718896805430,0.32827254,64987.0,64986.0,0.009471]
[1718896806742,0.21736894,64987.0,64986.0,0.009471]
[1718896807193,0.21736894,64987.0,64986.0,0.01888714]
[1718896807194,0.35518029,64987.0,64986.0,0.01888714]
[1718896807409,0.21736894,64987.0,64986.0,0.01888714]
[1718896807621,0.21736894,64987.0,64986.0,0.009471]
[1718896807791,0.21736894,64987.0,64986.0,0.01888714]
[1718896807962,0.27481842,64987.0,64986.0,0.01888714]
[1718896808134,0.26524948,64987.0,64986.0,0.01888714]
[1718896808337,0.27482212,64987.0,64986.0,0.01888714]
[1718896808957,0.41266537,64987.0,64986.0,0.01888714]
[1718896809245,0.27482212,64987.0,64986.0,0.01888714]
[1718896809446,0.02957264,64987.0,64986.0,0.009471]
[1718896809665,0.35524817,64987.0,64986.0,0.01888714]
[1718896810074,0.21737264,64987.0,64986.0,0.01888714]
[1718896810273,0.25932129,64987.0,64986.0,0.01888714]
[1718896810905,0.45932129,64987.0,64986.0,0.01888714]
[1718896811096,0.45932129,64987.0,64985.0,0.00948199]
[1718896811097,0.2,64986.0,64985.0,0.00948199]
[1718896811296,0.2,64986.0,64974.0,0.00948199]
[1718896811297,0.2,64983.0,64974.0,0.00948199]
[1718896811553,0.1878,64976.0,64974.0,0.00948199]
[1718896812085,0.32559899,64976.0,64974.0,0.00948199]
[1718896812325,0.1878,64976.0,64974.0,0.00948199]
[1718896813198,0.32561282,64976.0,64974.0,0.00948199]
[1718896813407,0.63719614,64976.0,64974.0,0.00948199]
[1718896813631,0.48713737,64976.0,64974.0,0.00948199]
[1718896813767,0.51128207,64976.0,64974.0,0.00948199]
[1718896813982,0.50649598,64976.0,64974.0,0.00948199]
[1718896814176,0.2,64966.0,64955.0,0.1118]
[1718896814381,0.1878,64959.0,64944.0,0.01998902]
[1718896814579,0.1878,64959.0,64951.0,0.1118]
[1718896814580,0.33034844,64959.0,64951.0,0.1118]
[1718896814952,0.33034844,64959.0,64935.0,0.0357651]
[1718896814953,0.30488563,64959.0,64945.0,0.1096]
[1718896815277,0.6142487,64959.0,64945.0,0.1096]
[1718896815474,0.57187419,64959.0,64945.0,0.1096]
[1718896815662,0.37187419,64959.0,64945.0,0.1096]
[1718896815862,0.67187419,64959.0,64940.0,0.01998902]
[1718896816079,0.67187419,64959.0,64941.0,0.01998902]
[1718896816080,0.77187419,64959.0,64941.0,0.01998902]
[1718896816523,0.58187419,64959.0,64941.0,0.01998902]
[1718896816761,0.78187419,64959.0,64941.0,0.01998902]
[1718896816956,0.58408856,64959.0,64941.0,0.01998902]
[1718896817154,0.58408856,64959.0,64939.0,0.00948199]
[1718896817155,0.48887411,64959.0,64945.0,0.01998902]
[1718896817363,0.48887411,64959.0,64944.0,0.01998902]
[1718896817364,0.58887411,64959.0,64944.0,0.01998902]
[1718896817738,0.72649015,64959.0,64944.0,0.01998902]
[1718896817942,0.48887411,64959.0,64944.0,0.01998902]
[1718896818197,0.48887411,64959.0,64939.0,0.00948199]
[1718896818198,0.02178555,64959.0,64953.0,0.1075]
[1718896818403,0.20958555,64959.0,64953.0,0.1075]
[1718896818755,0.30131486,64959.0,64958.0,0.01755532]
[1718896818958,0.34291223,64959.0,64958.0,0.01755532]
[1718896819138,0.25118292,64959.0,64958.0,0.00948199]
[1718896819350,0.20958555,64959.0,64958.0,0.00948199]
[1718896819758,0.2048,64959.0,64958.0,0.00948199]
[1718896819962,0.20958654,64959.0,64958.0,0.00948199]
[1718896820159,0.20958654,64959.0,64958.0,0.01755532]
[1718896820360,0.20958654,64959.0,64958.0,0.00948199]
[1718896821193,0.02178654,64959.0,64958.0,0.00948199]
[1718896821618,0.02178654,64959.0,64958.0,0.01755532]
[1718896821834,0.02178654,64959.0,64958.0,0.00948199]
[1718896822017,0.02178654,64959.0,64958.0,0.01755532]
[1718896822227,0.02178654,64959.0,64958.0,0.00948199]
[1718896822442,0.02178654,64959.0,64958.0,0.01755532]
[1718896822641,0.04274519,64959.0,64958.0,0.01755532]
[1718896823068,0.04274519,64959.0,64958.0,0.00948199]
[1718896824042,0.13441879,64959.0,64958.0,0.00948199]
[1718896824305,0.04274519,64959.0,64958.0,0.00948199]
[1718896824635,0.09161551,64960.0,64959.0,0.01999481]
[1718896824871,0.64417663,64960.0,64959.0,0.01999481]
[1718896825070,0.2524,64951.0,64950.0,0.00948199]
[1718896825271,0.1,64941.0,64923.0,0.1096]
[1718896825468,0.1,64941.0,64926.0,0.01998902]
[1718896825469,0.1878,64940.0,64926.0,0.01998902]
[1718896825682,0.6402,64940.0,64921.0,0.00948199]
[1718896825893,1.18129473,64940.0,64921.0,0.00948199]
[1718896826213,1.31089217,64940.0,64921.0,0.00948199]
[1718896826408,0.1,64936.0,64921.0,0.00948199]
[1718896826609,0.36212483,64936.0,64921.0,0.00948199]
[1718896826821,0.36212483,64936.0,64921.0,0.02947101]
[1718896827027,0.23973822,64936.0,64930.0,0.12098199]
[1718896827228,0.19736371,64936.0,64930.0,0.12098199]
[1718896827428,0.19736371,64936.0,64935.0,0.01318468]
[1718896827603,0.19736371,64936.0,64935.0,0.0049251]
[1718896827805,0.19736371,64936.0,64935.0,0.01318468]
[1718896828007,0.19736371,64936.0,64935.0,0.0049251]
[1718896828172,0.19736371,64936.0,64935.0,0.01318468]
[1718896828380,0.19736371,64936.0,64935.0,0.0049251]
[1718896828626,0.19736371,64936.0,64935.0,0.01418468]
[1718896828627,0.2018,64936.0,64935.0,0.01418468]
[1718896828782,0.22093577,64936.0,64935.0,0.0059251]
[1718896828984,0.22093577,64936.0,64935.0,0.01418468]
[1718896829184,0.20693577,64936.0,64935.0,0.01318468]
[1718896829391,0.21993577,64936.0,64935.0,0.0341737]
[1718896829592,0.21993577,64936.0,64935.0,0.43853482]
[1718896829593,0.02256773,64936.0,64935.0,0.43853482]
[1718896829794,0.03156773,64936.0,64935.0,0.44953482]
[1718896830070,0.02256773,64936.0,64935.0,0.44853482]
[1718896830205,0.02256773,64936.0,64935.0,0.43853482]
[1718896830206,0.02229147,64936.0,64935.0,0.43853482]
[1718896830400,0.03129147,64936.0,64935.0,0.44953482]
[1718896830582,0.03129147,64936.0,64935.0,0.46949347]
[1718896830583,0.02229147,64936.0,64935.0,0.46949347]
[1718896830784,0.02229147,64936.0,64935.0,0.44853482]
[1718896831029,0.02229147,64936.0,64935.0,0.44953482]
[1718896831226,0.51940734,64966.0,64955.0,0.01998902]
[1718896831227,0.0260599,64959.0,64955.0,0.01998902]
[1718896831448,0.00957279,64958.0,64957.0,0.01998902]
[1718896831603,0.1154,64974.0,64957.0,0.01998902]
[1718896831604,0.00957346,64964.0,64963.0,0.01998902]
[1718896831809,0.2119447,64976.0,64969.0,0.01998902]
[1718896832017,0.2119447,64976.0,64958.0,0.01]
[1718896832018,0.00957458,64975.0,64973.0,0.01998902]
[1718896832287,0.00957458,64975.0,64955.0,0.07628172]
[1718896832288,0.00957458,64975.0,64972.0,0.1149]
[1718896832410,0.00957458,64975.0,64974.0,0.00587319]
[1718896832615,0.00957458,64975.0,64973.0,0.00587594]
[1718896832812,0.00957458,64975.0,64974.0,0.00587319]
[1718896833248,0.00957458,64975.0,64972.0,0.1149]
[1718896833449,0.0241447,64976.0,64974.0,0.00587319]
[1718896833683,0.0241447,64976.0,64973.0,0.00661043]
[1718896833852,0.01,64975.0,64973.0,0.001]
[1718896834204,0.0241447,64976.0,64972.0,0.13488902]
[1718896834605,0.015,64975.0,64972.0,0.1159]
[1718896834824,0.005,64975.0,64972.0,0.13488902]
[1718896835019,0.005,64975.0,64972.0,0.1149]
[1718896835232,0.02426447,64974.0,64973.0,0.001]
[1718896835440,0.1878,64974.0,64973.0,0.001]
[1718896836444,0.18571714,64974.0,64973.0,0.001]
[1718896837008,0.18571714,64974.0,64969.0,0.01998902]
[1718896837202,0.18571714,64974.0,64970.0,0.01998902]
[1718896837425,0.0241447,64976.0,64975.0,0.01998902]
[1718896838070,0.009,64975.0,64974.0,0.01998902]
[1718896838270,0.0241447,64976.0,64974.0,0.01998902]
[1718896838476,0.0241447,64976.0,64975.0,0.17255014]
[1718896838731,0.0351447,64976.0,64975.0,0.17355014]
[1718896838895,0.0411447,64976.0,64975.0,0.17355014]
[1718896839301,0.0411447,64976.0,64975.0,0.44185014]